bitfinex/quotes_BTCUSD_20251219
["timestamp","ask_amount","ask_price","bid_price","bid_amount"]
[1766162569599,0.01700757,88593.0,88579.0,0.0025]
[1766162569810,0.00572,88593.0,88580.0,0.00572]
[1766162570530,0.00572,88593.0,88581.0,0.96532]
[1766162570990,1.0,88591.0,88581.0,0.96532]
[1766162571879,1.0,88591.0,88581.0,0.46712]
[1766162574161,1.0,88591.0,88581.0,0.96532]
[1766162574393,1.0,88591.0,88582.0,0.4982]
[1766162576373,1.0,88591.0,88581.0,0.46712]
[1766162576374,0.01128604,88605.0,88587.0,0.4982]
[1766162576612,0.00582832,88605.0,88592.0,0.96532]
[1766162576820,0.46889,88614.0,88597.0,0.96532]
[1766162576986,0.00572,88615.0,88601.0,0.97660655]
[1766162577199,0.00572,88615.0,88602.0,0.01128642]
[1766162577400,0.00572,88615.0,88601.0,0.96542832]
[1766162577585,0.01700477,88615.0,88601.0,0.96542832]
[1766162577784,0.00572,88615.0,88601.0,0.96542832]
[1766162577988,0.01700477,88615.0,88602.0,0.96532]
[1766162578185,0.01128489,88614.0,88602.0,0.96532]
[1766162578383,0.0025,88613.0,88602.0,0.96532]
[1766162578604,0.01378502,88613.0,88602.0,0.96532]
[1766162578808,0.0025,88613.0,88602.0,0.96532]
[1766162579209,0.00572,88615.0,88602.0,0.96532]
[1766162579415,0.01128489,88614.0,88602.0,0.96532]
[1766162579630,0.0025,88614.0,88602.0,0.96532]
[1766162580410,0.0025,88614.0,88602.0,0.4982]
[1766162580629,0.0025,88614.0,88602.0,0.96532]
[1766162581054,0.0025,88614.0,88609.0,0.01128553]
[1766162581262,0.0025,88614.0,88606.0,0.97660591]
[1766162581263,0.47471,88633.0,88616.0,0.4982]
[1766162581470,0.01128158,88640.0,88621.0,0.4982]
[1766162581686,0.01128222,88635.0,88622.0,0.46712]
[1766162581883,0.01128222,88635.0,88623.0,0.00572]
[1766162582041,0.0112826,88632.0,88623.0,0.00572]
[1766162582225,0.54351213,88623.0,88604.0,0.0125]
[1766162582425,0.01238275,88623.0,88608.0,0.0025]
[1766162582627,0.011284,88621.0,88610.0,0.0025]
[1766162582831,0.01128387,88622.0,88612.0,0.0025]
[1766162582832,0.06770338,88622.0,88612.0,0.0025]
[1766162583246,0.06770285,88623.0,88612.0,0.0025]
[1766162583666,0.01128426,88619.0,88612.0,0.0025]
[1766162583878,0.01128413,88620.0,88613.0,0.00572]
[1766162584306,0.01128387,88622.0,88613.0,0.00572]
[1766162584930,1.00573808,88625.0,88614.0,0.49343]
[1766162584931,0.00572,88625.0,88614.0,0.49343]
[1766162585140,0.00572,88625.0,88613.0,0.00572]
[1766162585659,0.00572,88625.0,88614.0,0.50471489]
[1766162585989,0.00572,88625.0,88616.0,0.47076]
[1766162586612,0.00572,88625.0,88613.0,0.00572]
[1766162587044,0.50887,88625.0,88613.0,0.00572]
[1766162587259,0.00572,88625.0,88613.0,0.00572]
[1766162588892,0.05641815,88624.0,88613.0,0.0025]
[1766162589081,0.47342,88617.0,88604.0,0.00572]
[1766162589228,0.47342,88617.0,88604.0,0.02128617]
[1766162589229,0.001099,88613.0,88604.0,0.02128617]
[1766162589424,0.001099,88613.0,88605.0,0.00572]
[1766162589744,0.001099,88613.0,88605.0,0.01700604]
[1766162589944,0.07892889,88621.0,88605.0,0.00572]
[1766162590338,0.98785362,88624.0,88606.0,0.97547591]
[1766162590548,0.01128375,88623.0,88606.0,0.97547591]
[1766162590880,1.03298831,88624.0,88606.0,0.97547591]
[1766162591090,0.00572,88625.0,88613.0,0.0025]
[1766162591301,0.00572,88625.0,88613.0,0.96669]
[1766162591549,0.00572,88625.0,88615.0,0.47076]
[1766162593348,0.0025,88632.0,88616.0,0.01128464]
[1766162593498,0.0025,88632.0,88617.0,0.96419]
[1766162593700,0.01128209,88636.0,88619.0,0.96419]
[1766162593701,0.00572,88631.0,88619.0,0.96419]
[1766162594302,0.0025,88632.0,88619.0,0.96419]
[1766162594559,0.0025,88632.0,88618.0,0.00572]
[1766162594560,0.0025,88632.0,88606.0,0.96419]
[1766162594720,0.001099,88619.0,88612.0,0.00572]
[1766162595114,0.00572,88627.0,88612.0,0.00572]
[1766162595316,0.01128349,88625.0,88612.0,0.00572]
[1766162595540,0.01128426,88619.0,88607.0,0.00572]
[1766162595837,0.07892876,88622.0,88607.0,0.00572]
[1766162596005,0.50315,88624.0,88607.0,0.00572]
[1766162596207,0.06770262,88623.0,88607.0,0.00572]
[1766162596407,0.48470349,88625.0,88607.0,0.00572]
[1766162596408,0.06770844,88616.0,88607.0,0.00572]
[1766162596606,0.01128362,88624.0,88607.0,0.96991]
[1766162596800,0.50887,88627.0,88607.0,0.47648]
[1766162596801,0.01128413,88620.0,88607.0,0.47648]
[1766162597094,1.03299139,88619.0,88607.0,0.00572]
[1766162597285,0.97657,88619.0,88607.0,0.00572]
[1766162598431,0.97657,88619.0,88608.0,0.0025]
[1766162598632,1.0442756,88619.0,88608.0,0.0025]
[1766162598874,0.98785426,88619.0,88608.0,0.0025]
[1766162599078,0.23693451,88633.0,88608.0,0.01378566]
[1766162599274,0.01128286,88630.0,88610.0,0.0025]
[1766162599491,0.01128311,88628.0,88611.0,0.01378528]
[1766162599686,0.01128298,88629.0,88613.0,0.94218]
[1766162600326,0.01128311,88628.0,88613.0,0.94218]
[1766162600532,0.01128349,88625.0,88613.0,0.94218]
[1766162600706,0.01128362,88624.0,88613.0,0.9479]
[1766162600906,0.06770195,88624.0,88613.0,0.47436]
[1766162601115,0.01128387,88622.0,88613.0,0.00572]
[1766162601318,0.06770282,88623.0,88613.0,0.00572]
[1766162601474,0.01128375,88623.0,88613.0,0.00572]
[1766162601721,0.01128362,88624.0,88613.0,0.00572]
[1766162601923,0.01128349,88625.0,88613.0,0.00572]
[1766162602123,0.01128362,88624.0,88613.0,0.00572]
[1766162602319,0.01128375,88623.0,88613.0,0.00572]
[1766162602525,0.06770256,88623.0,88613.0,0.00572]
[1766162602893,0.01128387,88622.0,88613.0,0.00572]
[1766162603101,0.48034337,88626.0,88613.0,0.00572]
[1766162603305,0.01128362,88624.0,88613.0,0.00572]
[1766162603730,0.01128375,88623.0,88613.0,0.00572]
[1766162604110,0.06770216,88624.0,88607.0,0.0025]
[1766162604347,0.06770216,88624.0,88612.0,0.0025]
[1766162604523,0.01128375,88623.0,88612.0,0.0025]
[1766162604857,0.01128362,88624.0,88612.0,0.0025]
[1766162605090,0.06770211,88624.0,88612.0,0.0025]
[1766162605300,0.06770147,88625.0,88612.0,0.0025]
[1766162605532,0.067703,88624.0,88612.0,0.0025]
[1766162605730,0.53676085,88626.0,88612.0,0.0025]
[1766162605908,0.01128349,88625.0,88612.0,0.0025]
[1766162606082,0.46906,88626.0,88612.0,0.0025]
[1766162606283,0.01128375,88623.0,88612.0,0.0025]
[1766162606478,0.01128362,88624.0,88612.0,0.04242527]
[1766162606755,0.05641866,88624.0,88612.0,0.04242527]
[1766162607153,0.01128413,88620.0,88612.0,0.04242527]
[1766162607481,0.05641999,88622.0,88612.0,0.04242527]
[1766162607673,0.01128387,88622.0,88612.0,0.04242527]
[1766162607811,0.06770371,88623.0,88612.0,0.04242527]
[1766162608217,0.01128375,88623.0,88612.0,0.04242527]
[1766162608419,0.06770259,88623.0,88614.0,0.03992527]
[1766162608622,0.01128387,88622.0,88614.0,0.03992527]
[1766162608958,0.06770259,88623.0,88614.0,0.03992527]
[1766162609158,0.01128387,88622.0,88614.0,0.03992527]
[1766162609335,0.01128273,88631.0,88616.0,0.03992527]
[1766162609702,0.46906,88630.0,88618.0,0.03992527]
[1766162609908,0.07341809,88629.0,88618.0,0.03992527]
[1766162610117,0.01128324,88627.0,88618.0,0.03992527]
[1766162610321,0.01700298,88629.0,88616.0,0.03992527]
[1766162610519,0.01128324,88627.0,88617.0,0.03992527]
[1766162610734,0.01128311,88628.0,88617.0,0.03992527]
[1766162610947,0.01128311,88628.0,88618.0,0.94218]
[1766162611156,0.06769961,88627.0,88618.0,0.46864]
[1766162611374,0.01128324,88627.0,88618.0,0.46864]
[1766162611581,0.06769796,88629.0,88618.0,0.50856527]
[1766162611808,0.01128311,88628.0,88618.0,0.50856527]
[1766162612019,0.06769796,88629.0,88618.0,0.50856527]
[1766162612020,0.00572,88631.0,88618.0,0.46864]
[1766162612231,0.05641479,88630.0,88618.0,0.50856527]
[1766162612433,0.06769765,88630.0,88618.0,0.50856527]
[1766162612637,0.01128311,88628.0,88618.0,0.03992527]
[1766162612834,0.01128375,88623.0,88618.0,0.03992527]
[1766162613068,0.93897,88628.0,88612.0,0.0617439]
[1766162613069,0.05641689,88626.0,88616.0,0.03992527]
[1766162613255,0.01128337,88626.0,88616.0,0.03992527]
[1766162613459,0.01128362,88624.0,88616.0,0.03992527]
[1766162613660,0.06770219,88625.0,88616.0,0.03992527]
[1766162613865,0.06770192,88624.0,88616.0,0.03992527]
[1766162614067,0.06770192,88624.0,88615.0,0.03992527]
[1766162614278,0.05641992,88622.0,88615.0,0.03992527]
[1766162614477,0.01128375,88623.0,88616.0,0.03992527]
[1766162614685,0.067702,88624.0,88616.0,0.03992527]
[1766162614888,0.06770252,88623.0,88616.0,0.03992527]
[1766162615721,0.01128349,88625.0,88617.0,0.03992527]
[1766162615926,1.02252629,88627.0,88617.0,0.03992527]
[1766162616154,0.01128362,88624.0,88617.0,0.03992527]
[1766162616367,0.05641886,88623.0,88617.0,0.03992527]
[1766162616584,0.05641886,88623.0,88616.0,0.03992527]
[1766162617014,0.01128362,88624.0,88616.0,0.03992527]
[1766162617224,0.01128349,88625.0,88616.0,0.03992527]
[1766162617457,0.01128387,88622.0,88615.0,0.458367]
[1766162617696,0.01128375,88623.0,88615.0,0.458367]
[1766162618348,0.06770225,88624.0,88615.0,0.458367]
[1766162618585,0.06770307,88623.0,88615.0,0.458367]
[1766162619045,0.01128477,88615.0,88606.0,0.04015089]
[1766162619269,0.06764489,88620.0,88588.0,0.46184]
[1766162619270,0.48193,88603.0,88588.0,0.46184]
[1766162619473,0.01128744,88594.0,88588.0,0.00572]
[1766162619685,0.01128744,88594.0,88583.0,0.50058]
[1766162619892,0.54408216,88602.0,88585.0,0.00572]
[1766162620103,0.01128655,88601.0,88586.0,0.96242]
[1766162620311,0.01128655,88601.0,88586.0,0.46184]
[1766162620312,0.0112868,88599.0,88586.0,0.46184]
[1766162620484,0.00572,88602.0,88591.0,0.51186782]
[1766162620691,0.54060397,88615.0,88602.0,0.001099]
[1766162620904,0.00572,88613.0,88602.0,0.963519]
[1766162621109,0.0025,88615.0,88604.0,0.96242]
[1766162621306,0.0025,88615.0,88605.0,0.96242]
[1766162621528,0.0025,88615.0,88606.0,0.96242]
[1766162621762,0.00572,88618.0,88607.0,0.46184]
[1766162621977,0.00572,88618.0,88615.0,0.001099]
[1766162622453,0.48193,88628.0,88609.0,0.01128553]
[1766162622688,0.00572,88628.0,88615.0,0.06770813]
[1766162622856,0.00572,88628.0,88616.0,0.46756]
[1766162623006,0.00572,88628.0,88618.0,0.96242]
[1766162623419,0.01950273,88631.0,88618.0,0.96242]
[1766162623645,0.01128311,88628.0,88618.0,0.96242]
[1766162623864,0.01711109,88631.0,88618.0,0.46184]
[1766162624096,0.01128311,88628.0,88618.0,0.46184]
[1766162624223,0.06770038,88626.0,88616.0,0.00572]
[1766162624420,0.01128349,88625.0,88616.0,0.00572]
[1766162624850,0.01128362,88624.0,88616.0,0.00572]
[1766162625056,0.05642061,88621.0,88610.0,0.0025]
[1766162625257,0.96611,88618.0,88605.0,0.00572]
[1766162625481,0.01128438,88618.0,88605.0,0.00572]
[1766162625821,0.48418,88618.0,88605.0,0.00572]
[1766162625975,0.01128375,88623.0,88605.0,0.5063]
[1766162626175,0.01128387,88622.0,88607.0,0.46184]
[1766162626374,0.011284,88621.0,88607.0,0.46184]
[1766162626595,0.01128387,88622.0,88607.0,0.96242]
[1766162626760,0.06764489,88620.0,88607.0,0.96242]
[1766162627172,0.06764489,88620.0,88608.0,0.0025]
[1766162628132,0.01128477,88615.0,88608.0,0.0025]
[1766162628274,0.49546477,88615.0,88606.0,0.0025]
[1766162628479,0.01128489,88614.0,88606.0,0.0025]
[1766162628733,0.49546477,88615.0,88606.0,0.0025]
[1766162628876,0.48418,88615.0,88606.0,0.0025]
[1766162629076,0.49546477,88615.0,88606.0,0.0025]
[1766162629302,0.48418,88615.0,88606.0,0.0025]
[1766162629507,0.48193,88617.0,88606.0,0.0025]
[1766162630493,0.01700438,88618.0,88606.0,0.0025]
[1766162630699,0.00572,88618.0,88608.0,0.96242]
[1766162634005,0.01,88636.0,88618.0,0.001099]
[1766162634181,0.00582836,88631.0,88621.0,0.50058]
[1766162634383,0.00582836,88631.0,88618.0,0.05642168]
[1766162634535,0.00582836,88631.0,88615.0,0.01700477]
[1766162634735,0.00582836,88631.0,88620.0,0.50058]
[1766162634950,0.00582836,88631.0,88621.0,0.46184]
[1766162635778,0.00010836,88631.0,88621.0,0.5063]
[1766162635973,0.00010836,88631.0,88622.0,0.96242]
[1766162636558,0.00010836,88631.0,88622.0,0.50058]
[1766162636763,0.00010836,88631.0,88623.0,0.46184]
[1766162637177,0.00010836,88631.0,88621.0,0.00572]
[1766162637361,0.00010836,88631.0,88622.0,0.96242]
[1766162639425,0.00010836,88631.0,88621.0,0.00572]
[1766162640906,0.01139109,88631.0,88621.0,0.00572]
[1766162641085,0.00010836,88631.0,88621.0,0.00572]
[1766162641557,0.00010836,88631.0,88611.0,0.01128528]
[1766162641722,0.96611,88622.0,88612.0,0.00572]
[1766162641924,0.07892838,88625.0,88612.0,0.00572]
[1766162642160,0.01128387,88622.0,88612.0,0.00572]
[1766162642346,0.01128375,88623.0,88612.0,0.00572]
[1766162642610,0.23695345,88625.0,88612.0,0.00572]
[1766162642844,0.011284,88621.0,88612.0,0.46756]
[1766162643047,0.48418,88618.0,88612.0,0.00572]
[1766162643359,0.48418,88618.0,88606.0,0.00572]
[1766162643584,0.01128438,88618.0,88606.0,0.00572]
[1766162643867,0.01128451,88617.0,88606.0,0.00572]
[1766162644411,0.0677065,88618.0,88606.0,0.00572]
[1766162644901,0.01128464,88616.0,88606.0,0.00572]
[1766162645200,0.0677072,88617.0,88606.0,0.00572]
[1766162645427,0.01128464,88616.0,88607.0,0.0025]
[1766162645550,0.97242464,88616.0,88607.0,0.0025]
[1766162645748,0.01128477,88615.0,88607.0,0.0025]
[1766162646288,0.5574584,88616.0,88607.0,0.0025]
[1766162646459,0.01128489,88614.0,88607.0,0.0025]
[1766162646650,0.48725,88611.0,88603.0,0.00572]
[1766162647079,0.48725,88611.0,88595.0,0.54638121]
[1766162647080,0.01128617,88604.0,88595.0,0.0592439]
[1766162647280,0.01128617,88604.0,88592.0,0.00572]
[1766162647281,0.06771703,88604.0,88592.0,0.00572]
[1766162647484,0.47139,88605.0,88592.0,0.00572]
[1766162647910,0.53910647,88605.0,88592.0,0.00572]
[1766162648081,0.01128617,88604.0,88592.0,0.00572]
[1766162648285,0.47139,88605.0,88592.0,0.00582832]
[1766162648624,0.47139,88605.0,88593.0,0.0025]
[1766162648967,0.01128744,88594.0,88587.0,0.30160554]
[1766162649180,0.01128884,88583.0,88562.0,0.04516]
[1766162649388,0.01128884,88583.0,88563.0,0.00572]
[1766162649389,0.96726,88579.0,88563.0,0.00572]
[1766162649638,0.49587,88579.0,88563.0,0.00572]
[1766162649866,0.49587,88579.0,88564.0,0.01129126]
[1766162650099,0.49587,88579.0,88565.0,0.05645521]
[1766162650334,0.49587,88579.0,88564.0,0.01129126]
[1766162650558,0.49587,88579.0,88563.0,0.00572]
[1766162651017,0.49587,88579.0,88564.0,0.01129126]
[1766162651228,0.49587,88579.0,88568.0,0.01129075]
[1766162651448,0.49587,88579.0,88567.0,0.01129088]
[1766162651651,0.49587,88579.0,88565.0,0.06774673]
[1766162652071,0.49587,88579.0,88565.0,0.01129114]
[1766162652511,0.49587,88579.0,88566.0,0.06774606]
[1766162652844,0.49587,88579.0,88564.0,0.9993475]
[1766162653236,0.49587,88579.0,88565.0,0.01129114]
[1766162654017,0.49587,88579.0,88565.0,0.06774665]
[1766162654184,0.07336489,88582.0,88563.0,0.00572]
[1766162654185,0.47139,88580.0,88563.0,0.00572]
[1766162654385,0.96726,88574.0,88562.0,0.05088]
[1766162654638,0.96726,88573.0,88561.0,0.00572]
[1766162654844,0.96726,88573.0,88553.0,0.06775591]
[1766162654845,0.01129075,88568.0,88551.0,0.01]
[1766162655049,0.96726,88564.0,88549.0,0.45575]
[1766162655426,0.96726,88564.0,88550.0,0.05646517]
[1766162655627,0.96726,88564.0,88550.0,0.01129305]
[1766162655986,0.96726,88564.0,88549.0,0.45575]
[1766162656187,0.01129101,88566.0,88546.0,0.01]
[1766162656496,0.96726,88563.0,88547.0,0.0025]
[1766162656832,0.96726,88563.0,88549.0,0.0025]
[1766162657040,0.96726,88561.0,88541.0,0.45575]
[1766162657237,0.00572,88562.0,88544.0,0.01129382]
[1766162657572,0.00572,88562.0,88546.0,0.06776097]
[1766162657777,0.00572,88562.0,88549.0,0.01129318]
[1766162658127,0.98019,88581.0,88546.0,0.00572]
[1766162658325,0.0025,88576.0,88562.0,0.973389]
[1766162658589,0.0025,88576.0,88562.0,0.98358152]
[1766162658797,0.98019,88591.0,88562.0,0.00572]
[1766162658953,0.00582832,88583.0,88572.0,0.01129024]
[1766162659149,0.00010832,88583.0,88572.0,0.97229]
[1766162659549,0.00010832,88583.0,88579.0,0.01128935]
[1766162659736,0.00572,88589.0,88583.0,0.000108]
[1766162659979,5.297e-05,88589.0,88583.0,0.000108]
[1766162660177,5.297e-05,88589.0,88578.0,0.01128948]
[1766162660432,5.297e-05,88589.0,88579.0,0.01128935]
[1766162660608,5.297e-05,88589.0,88578.0,0.01128948]
[1766162660813,5.297e-05,88589.0,88578.0,0.05644716]
[1766162661134,5.297e-05,88589.0,88580.0,0.01128923]
[1766162661340,5.297e-05,88589.0,88582.0,0.01128897]
[1766162661559,5.297e-05,88589.0,88583.0,0.01128884]
[1766162661839,0.00403184,88590.0,88585.0,0.01128859]
[1766162661982,0.00403184,88590.0,88583.0,0.01128884]
[1766162662191,0.00403184,88590.0,88584.0,0.01128872]
[1766162662413,0.00403184,88590.0,88585.0,0.06773149]
[1766162662601,0.48068,88602.0,88585.0,0.01128859]
[1766162662811,0.00572,88597.0,88583.0,0.06773295]
[1766162663006,0.00572,88597.0,88585.0,0.01128859]
[1766162663208,0.00572,88597.0,88583.0,0.01128884]
[1766162663413,0.00572,88597.0,88585.0,0.01128859]
[1766162663628,0.00572,88597.0,88586.0,0.05644229]
[1766162663826,0.0025,88596.0,88586.0,0.97229]
[1766162664032,0.0025,88596.0,88586.0,0.98357846]
[1766162664250,0.0025,88596.0,88587.0,0.01128833]
[1766162664457,0.0025,88596.0,88586.0,1.04002076]
[1766162664658,0.0025,88596.0,88587.0,0.06772877]
[1766162665068,0.0025,88596.0,88589.0,0.01128808]
[1766162665548,0.0025,88596.0,88588.0,0.06772918]
[1766162665773,0.0025,88596.0,88588.0,0.01128821]
[1766162665989,0.0025,88596.0,88589.0,0.01128808]
[1766162666664,0.0025,88596.0,88587.0,0.01128833]
[1766162666872,0.0025,88596.0,88589.0,0.01128808]
[1766162667232,0.0025,88596.0,88586.0,0.98357846]
[1766162667845,0.0025,88596.0,88586.0,0.97229]
[1766162668640,0.0025,88596.0,88587.0,0.01128833]
[1766162668973,0.0025,88596.0,88588.0,0.06772917]
[1766162669213,0.0025,88596.0,88591.0,0.97229]
[1766162670059,0.00572,88599.0,88592.0,0.97229]
[1766162670929,0.06771291,88611.0,88601.0,0.01128655]
[1766162670930,0.49951,88611.0,88601.0,0.01128655]
[1766162671128,0.49951,88611.0,88579.0,0.0025]
[1766162671129,0.00572,88611.0,88604.0,0.05643083]
[1766162671427,0.00572,88611.0,88606.0,0.01128591]
[1766162671576,0.00572,88616.0,88605.0,0.06771618]
[1766162671807,0.00572,88616.0,88607.0,0.97229]
[1766162672013,0.06764489,88623.0,88607.0,0.97229]
[1766162672014,0.00572,88623.0,88607.0,0.05642889]
[1766162672213,0.00572,88623.0,88616.0,0.001099]
[1766162672637,0.49951,88627.0,88616.0,0.01128464]
[1766162672851,0.49951,88627.0,88613.0,0.05642461]
[1766162672852,0.00572,88626.0,88614.0,0.01128489]
[1766162673028,0.00572,88626.0,88607.0,0.01128579]
[1766162673229,0.0677035,88622.0,88608.0,0.97479]
[1766162673428,0.01128387,88622.0,88608.0,0.97479]
[1766162673636,0.011284,88621.0,88608.0,0.97479]
[1766162673844,0.06770407,88621.0,88608.0,0.97449129]
[1766162674044,0.46771,88619.0,88605.0,0.00572]
[1766162674274,0.98206,88619.0,88605.0,0.00572]
[1766162674664,0.98206,88619.0,88606.0,0.01128591]
[1766162674851,0.06764489,88624.0,88607.0,0.01128579]
[1766162675185,0.0025,88625.0,88610.0,0.9226]
[1766162675362,0.0025,88625.0,88616.0,0.05642284]
[1766162675570,0.00572,88626.0,88616.0,0.06770748]
[1766162675771,0.00572,88626.0,88618.0,0.01128438]
[1766162676089,0.00572,88626.0,88617.0,0.01128451]
[1766162676296,0.00572,88626.0,88614.0,0.05642449]
[1766162676500,0.00572,88626.0,88615.0,0.01128477]
[1766162676828,0.00572,88626.0,88612.0,0.93388515]
[1766162677041,0.00572,88626.0,88614.0,0.01128489]
[1766162677255,0.00572,88626.0,88613.0,0.01128502]
[1766162677587,0.00572,88626.0,88612.0,0.99031089]
[1766162677799,0.00572,88626.0,88612.0,0.93388515]
[1766162678351,0.52007,88626.0,88606.0,0.01128591]
[1766162678556,0.53135337,88626.0,88609.0,0.0025]
[1766162678822,0.98206,88623.0,88609.0,0.0025]
[1766162678977,0.46771,88614.0,88605.0,0.0025]
[1766162679872,0.98206,88614.0,88605.0,0.0025]
[1766162680096,0.51435,88614.0,88605.0,0.0025]
[1766162680730,0.99334489,88614.0,88605.0,0.0025]
[1766162681004,0.98206,88614.0,88605.0,0.0025]
[1766162681258,0.99334489,88614.0,88605.0,0.0025]
[1766162681444,0.99334489,88614.0,88590.0,0.01128795]
[1766162681445,0.06764489,88610.0,88590.0,0.01128795]
[1766162681597,0.00572,88609.0,88593.0,0.01700757]
[1766162681778,0.00572,88609.0,88595.0,0.01128731]
[1766162681976,0.00572,88609.0,88595.0,0.0025]
[1766162682182,0.00572,88609.0,88594.0,0.9226]
[1766162682699,0.00572,88609.0,88595.0,0.0025]
[1766162683111,0.01128591,88606.0,88595.0,0.0025]
[1766162683313,0.01128604,88605.0,88594.0,0.45468]
[1766162683491,0.51435,88596.0,88579.0,0.46792]
[1766162683674,0.98206,88593.0,88580.0,0.00572]
[1766162683874,0.98206,88593.0,88578.0,0.01700553]
[1766162683875,0.98206,88593.0,88581.0,0.00572]
[1766162684474,0.98206,88593.0,88582.0,0.0025]
[1766162684753,0.99334757,88593.0,88582.0,0.0025]
[1766162684902,0.01128782,88591.0,88582.0,0.0025]
[1766162685133,0.9933477,88592.0,88582.0,0.0025]
[1766162685279,0.98206,88592.0,88582.0,0.0025]
[1766162685486,0.01128846,88586.0,88576.0,0.00572]
[1766162685862,0.51435,88584.0,88571.0,0.00572]
[1766162686031,0.98206,88584.0,88571.0,0.00572]
[1766162686353,0.98206,88584.0,88572.0,0.0025]
[1766162686634,0.01700859,88585.0,88571.0,0.00572]
[1766162686635,0.00572,88585.0,88571.0,0.00572]
[1766162686793,0.51435,88583.0,88571.0,0.00572]
[1766162687418,0.46771,88584.0,88572.0,0.0025]
[1766162688137,0.46775481,88584.0,88572.0,0.0025]
[1766162689064,4.481e-05,88584.0,88573.0,0.01129012]
[1766162689192,0.0025,88597.0,88584.0,3.919e-05]
[1766162689393,0.00572,88596.0,88584.0,3.919e-05]
[1766162689639,0.01700719,88596.0,88583.0,0.46792]
[1766162689796,0.00572,88596.0,88583.0,0.46792]
[1766162690399,0.00572,88596.0,88583.0,0.9226]
[1766162690639,0.01128731,88595.0,88583.0,0.9226]
[1766162690838,0.01128719,88596.0,88583.0,0.9226]
[1766162691042,0.00254482,88597.0,88583.0,0.9226]
[1766162692458,4.482e-05,88597.0,88584.0,0.01128872]
[1766162692711,4.482e-05,88597.0,88589.0,0.9226]
[1766162692895,4.82e-06,88597.0,88591.0,0.9226]
[1766162693122,4.82e-06,88597.0,88592.0,0.9226]
[1766162693326,4.82e-06,88597.0,88591.0,0.01128782]
[1766162693467,4.82e-06,88597.0,88592.0,0.46792]
[1766162693676,4.82e-06,88597.0,88595.0,0.46792]
[1766162693880,4.82e-06,88597.0,88593.0,0.0025]
[1766162694295,4.82e-06,88597.0,88593.0,0.002451]
[1766162694702,4.82e-06,88597.0,88581.0,0.01]
[1766162694925,4.82e-06,88597.0,88580.0,0.45468]
[1766162694926,0.98206482,88597.0,88584.0,0.00572]
[1766162695099,0.53543729,88597.0,88584.0,0.00572]
[1766162695301,0.46771482,88597.0,88584.0,0.00572]
[1766162696454,0.46771482,88597.0,88585.0,0.0025]
[1766162696867,0.01129188,88597.0,88585.0,0.0025]
[1766162697074,4.82e-06,88597.0,88585.0,0.0025]
[1766162698134,0.01129188,88597.0,88584.0,0.00572]
[1766162698349,0.06764489,88594.0,88584.0,0.00572]
[1766162698701,1.04970489,88594.0,88584.0,0.00572]
[1766162698893,0.53535489,88594.0,88584.0,0.00572]
[1766162699094,0.54664233,88594.0,88584.0,0.00572]
[1766162699814,0.53535489,88594.0,88584.0,0.00572]
[1766162700031,0.54664233,88594.0,88584.0,0.00572]
[1766162700266,0.54664233,88594.0,88580.0,0.0025]
[1766162700267,0.01700757,88593.0,88580.0,0.0025]
[1766162700445,0.46771,88590.0,88580.0,0.0025]
[1766162700617,0.00572,88593.0,88590.0,0.001099]
[1766162701030,0.0112877,88592.0,88582.0,0.0025]
[1766162701206,0.06764489,88592.0,88574.0,0.45468]
[1766162701587,0.98206,88585.0,88571.0,0.00572]
[1766162701793,0.98206,88585.0,88566.0,0.53566608]
[1766162701794,0.46771,88581.0,88566.0,0.01]
[1766162702014,0.46771,88581.0,88568.0,0.0025]
[1766162702422,0.46771,88581.0,88568.0,0.07024445]
[1766162702623,0.0025,88594.0,88581.0,0.923699]
[1766162702864,0.00572,88591.0,88582.0,0.9226]
[1766162703059,0.00572,88590.0,88582.0,0.9226]
[1766162703391,0.00572,88590.0,88582.0,0.45468]
[1766162704018,0.98206482,88597.0,88582.0,0.45468]
[1766162704261,0.98206482,88597.0,88581.0,0.0112891]
[1766162704262,4.82e-06,88597.0,88590.0,0.922619]
[1766162704398,4.82e-06,88597.0,88596.0,0.05643595]
[1766162704584,4.82e-06,88597.0,88596.0,0.06215595]
[1766162704982,4.82e-06,88597.0,88596.0,0.06465595]
[1766162705188,4.82e-06,88597.0,88596.0,0.00822]
[1766162705426,4.82e-06,88597.0,88596.0,0.06465595]
[1766162705947,4.82e-06,88597.0,88595.0,0.0025]
[1766162706152,0.01128413,88620.0,88601.0,0.05643272]
[1766162706153,4.82e-06,88608.0,88601.0,0.05643272]
[1766162706285,0.01128387,88622.0,88592.0,0.22825187]
[1766162706286,0.0452,88626.0,88608.0,0.06771394]
[1766162706486,0.0025,88623.0,88609.0,0.92152]
[1766162706763,0.07336489,88624.0,88609.0,0.92152]
[1766162706917,0.08464851,88624.0,88609.0,0.92152]
[1766162707122,0.0025,88622.0,88609.0,0.46601]
[1766162707305,0.0025,88619.0,88609.0,0.46601]
[1766162707887,0.0025,88619.0,88600.0,0.00572]
[1766162708094,0.01128719,88596.0,88587.0,0.0592439]
[1766162708227,0.48554,88596.0,88584.0,0.00572]
[1766162708428,0.00572,88600.0,88584.0,0.00572]
[1766162708429,0.00572,88600.0,88596.0,0.001099]
[1766162708629,0.00572,88603.0,88596.0,0.001099]
[1766162708828,0.98569,88614.0,88596.0,0.001099]
[1766162708829,0.01128489,88614.0,88596.0,0.01128719]
[1766162709057,0.00572,88611.0,88597.0,0.01128706]
[1766162709259,0.0025,88610.0,88601.0,0.01128655]
[1766162709459,0.56446851,88624.0,88610.0,0.001099]
[1766162709460,0.00572,88615.0,88610.0,0.001099]
[1766162710085,0.00572,88615.0,88603.0,0.92152]
[1766162710290,0.00572,88615.0,88605.0,0.93280604]
[1766162710492,0.00572,88615.0,88605.0,0.92152]
[1766162711887,0.00572,88615.0,88605.0,0.01128604]
[1766162712091,0.00572,88615.0,88606.0,0.93280591]
[1766162712468,0.00572,88615.0,88595.0,0.92152]
[1766162712655,0.00572,88615.0,88597.0,0.01133188]
[1766162712854,0.00572,88615.0,88597.0,0.06776708]
[1766162713140,0.01700477,88615.0,88597.0,4.482e-05]
[1766162713468,0.01128515,88612.0,88597.0,4.482e-05]
[1766162713680,0.01128515,88612.0,88598.0,0.0025]
[1766162713681,0.07893029,88610.0,88598.0,0.0025]
[1766162713906,0.98569,88598.0,88586.0,0.0592439]